fUST/lending_fUST_20250920
["ID","MTS","AMOUNT","RATE_DAILY","PERIOD"]
[386457431,1758304035521,-480.0,0.00022265,2]
[386457432,1758304035543,-587.91,0.00022265,2]
[386457433,1758304035563,-480.0,0.00022265,2]
[386457434,1758304035584,-1202.5,0.00022265,2]
[386457435,1758304035605,-480.0,0.00022266,2]
[386457436,1758304035627,-480.0,0.00022266,2]
[386457437,1758304035648,-480.0,0.00022266,2]
[386457438,1758304035670,-480.0,0.00022266,2]
[386457439,1758304035692,-480.0,0.00022266,2]
[386457440,1758304035714,-480.0,0.00022371,2]
[386457441,1758304035738,-1802.96,0.00022469,2]
[386457442,1758304035760,-480.0,0.00022469,2]
[386457443,1758304035783,-1034.62,0.00022469,2]
[386457444,1758304035806,-3577.51,0.00022469,2]
[386457445,1758304035829,-507.9,0.00022469,2]
[386457446,1758304035849,-166.71476582,0.00022538,2]
[386457447,1758304035869,-480.0,0.00022538,2]
[386457448,1758304035891,-501.29,0.00022538,2]
[386457449,1758304035911,-480.0,0.00022538,2]
[386457450,1758304035931,-628.31797318,0.00022538,2]
[386457451,1758304035952,-579.03,0.00022538,2]
[386457452,1758304035972,-480.0,0.00022538,2]
[386457453,1758304035992,-480.0,0.00022538,2]
[386457454,1758304036017,-480.0,0.00022538,2]
[386457455,1758304036039,-862.81,0.00022538,2]
[386457456,1758304036063,-1218.0,0.00022538,2]
[386457457,1758304036085,-480.0,0.00022538,2]
[386457458,1758304036109,-480.0,0.00022538,2]
[386457459,1758304036133,-567.97,0.00022539,2]
[386457460,1758304036154,-480.0,0.00022539,2]
[386457461,1758304036177,-480.0,0.00022539,2]
[386457462,1758304036199,-522.06,0.00022539,2]
[386457463,1758304036220,-480.0,0.00022539,2]
[386457464,1758304036241,-480.0,0.00022539,2]
[386457465,1758304036262,-424.29,0.00022539,2]
[386457466,1758304036283,-587.91,0.00022539,2]
[386457467,1758304036303,-256.72039678,0.00022539,2]
[386457468,1758304036325,-1202.5,0.00022539,2]
[386457469,1758304036346,-480.0,0.0002254,2]
[386457470,1758304036368,-480.0,0.0002254,2]
[386457471,1758304036392,-480.0,0.0002254,2]
[386457472,1758304036413,-480.0,0.0002254,2]
[386457473,1758304036435,-480.0,0.00022645,2]
[386457474,1758304036457,-574.77574716,0.0002265,2]
[386457475,1758304036482,-1802.96,0.00022743,2]
[386457476,1758304036504,-480.0,0.00022743,2]
[386457477,1758304036527,-1034.62,0.00022743,2]
[386457478,1758304036550,-3577.51,0.00022743,2]
[386457479,1758304036574,-507.9,0.00022743,2]
[386457480,1758304036595,-504.33457374,0.00022774,2]
[386457481,1758304036618,-1000.0,0.00022774,2]
[386457482,1758304036640,-501.37998563,0.00022774,2]
[386457483,1758304036662,-500.0,0.00022774,2]
[386457484,1758304036684,-1000.0,0.00022774,2]
[386457485,1758304036707,-500.0,0.00022774,2]
[386457486,1758304036727,-503.17106557,0.00022774,2]
[386457487,1758304036747,-507.20091411,0.00022774,2]
[386457488,1758304036768,-1000.0,0.00022774,2]
[386457489,1758304036788,-1000.0,0.00022774,2]
[386457490,1758304036807,-1000.0,0.00022774,2]
[386457491,1758304036828,-1000.0,0.00022774,2]
[386457492,1758304036848,-501.53364087,0.00022774,2]
[386457493,1758304036868,-480.0,0.00022812,2]
[386457494,1758304036889,-501.29,0.00022812,2]
[386457495,1758304036910,-480.0,0.00022812,2]
[386457496,1758304036931,-579.03,0.00022812,2]
[386457497,1758304036952,-480.0,0.00022812,2]
[386457498,1758304036972,-480.0,0.00022812,2]
[386457499,1758304036995,-480.0,0.00022812,2]
[386457500,1758304037021,-862.81,0.00022812,2]
[386457501,1758304037044,-1218.0,0.00022812,2]
[386457502,1758304037065,-171.85991547,0.00022812,2]
[386457503,1758304037086,-480.0,0.00022812,2]
[386457504,1758304037109,-567.97,0.00022813,2]
[386457505,1758304037130,-258.99979415,0.00022813,2]
[386457506,1758304037152,-480.0,0.00022813,2]
[386457507,1758304037172,-522.06,0.00022813,2]
[386457508,1758304037193,-480.0,0.00022813,2]
[386457509,1758304037213,-480.0,0.00022813,2]
[386457510,1758304037236,-587.91,0.00022813,2]
[386457511,1758304037258,-1202.5,0.00022813,2]
[386457512,1758304037278,-507.02667235,0.00022814,2]
[386457513,1758304037299,-480.0,0.00022814,2]
[386457514,1758304037320,-276.62041996,0.00022814,2]
[386457515,1758304037343,-480.0,0.00022814,2]
[386457516,1758304037366,-480.0,0.00022814,2]
[386457517,1758304037387,-2611.4786481,0.00022819,2]
[386457518,1758304037407,-2130.27775546,0.00022849,2]
[386457519,1758304037430,-480.0,0.00022919,2]
[386457520,1758304037451,-1802.96,0.00023017,2]
[386457521,1758304037471,-480.0,0.00023017,2]
[386457522,1758304037491,-1034.62,0.00023017,2]
[386457523,1758304037512,-3577.51,0.00023017,2]
[386457524,1758304037534,-507.9,0.00023017,2]
[386457525,1758304037554,-420.0,0.00023021,2]
[386457526,1758304037577,-546.80006638,0.0002308,2]
[386457527,1758304037602,-465.80170602,0.00023086,2]
[386457528,1758304037628,-501.29,0.00023086,2]
[386457529,1758304037650,-480.0,0.00023086,2]
[386457530,1758304037672,-579.03,0.00023086,2]
[386457531,1758304037695,-480.0,0.00023086,2]
[386457532,1758304037717,-480.0,0.00023086,2]
[386457533,1758304037738,-480.0,0.00023086,2]
[386457534,1758304037761,-862.81,0.00023086,2]
[386457535,1758304037784,-1218.0,0.00023086,2]
[386457536,1758304037805,-408.68995612,0.00023086,2]
[386457537,1758304037827,-567.97,0.00023087,2]
[386457538,1758304037848,-480.0,0.00023087,2]
[386457539,1758304037870,-522.06,0.00023087,2]
[386457540,1758304037892,-480.0,0.00023087,2]
[386457541,1758304037913,-480.0,0.00023087,2]
[386457542,1758304037935,-587.91,0.00023087,2]
[386457543,1758304037957,-1202.5,0.00023087,2]
[386457544,1758304037978,-480.0,0.00023088,2]
[386457545,1758304037998,-480.0,0.00023088,2]
[386457546,1758304038023,-480.0,0.00023088,2]
[386457547,1758304038158,-160.0,0.00023155,2]
[386457548,1758304038183,-480.0,0.00023193,2]
[386457549,1758304038203,-504.581996,0.00023287,2]
[386457550,1758304038226,-1802.96,0.00023291,2]
[386457551,1758304038249,-480.0,0.00023291,2]
[386457552,1758304038271,-1034.62,0.00023291,2]
[386457553,1758304038294,-3577.51,0.00023291,2]
[386457554,1758304038315,-507.9,0.00023291,2]
[386457555,1758304038335,-663.77060527,0.00023322,2]
[386457556,1758304038354,-1500.0,0.00023322,2]
[386457557,1758304038374,-1500.0,0.00023322,2]
[386457558,1758304038395,-1500.0,0.00023322,2]
[386457559,1758304038416,-500.0,0.00023322,2]
[386457560,1758304038437,-1500.0,0.00023322,2]
[386457561,1758304038459,-501.29,0.0002336,2]
[386457562,1758304038484,-480.0,0.0002336,2]
[386457563,1758304038506,-579.03,0.0002336,2]
[386457564,1758304038528,-480.0,0.0002336,2]
[386457565,1758304038551,-187.25379622,0.0002336,2]
[386457566,1758304038573,-480.0,0.0002336,2]
[386457567,1758304038595,-862.81,0.0002336,2]
[386457568,1758304038619,-1218.0,0.0002336,2]
[386457569,1758304038642,-567.97,0.00023361,2]
[386457570,1758304038671,-480.0,0.00023361,2]
[386457571,1758304038694,-522.06,0.00023361,2]
[386457572,1758304038715,-480.0,0.00023361,2]
[386457573,1758304038736,-480.0,0.00023361,2]
[386457574,1758304038759,-587.91,0.00023361,2]
[386457575,1758304038783,-540.55089184,0.00023361,2]
[386457576,1758304049078,-480.0,0.00021168,2]
[386457577,1758304049098,-480.0,0.00021168,2]
[386457578,1758304049120,-480.0,0.00021168,2]
[386457579,1758304049142,-1894.31,0.00021171,2]
[386457580,1758304049163,-480.0,0.00021442,2]
[386457581,1758304049182,-480.0,0.00021442,2]
[386457582,1758304049203,-1894.31,0.00021445,2]
[386457583,1758304049223,-480.0,0.00021716,2]
[386457584,1758304049244,-1894.31,0.00021719,2]
[386457585,1758304049264,-599.79,0.0002199,2]
[386457586,1758304049285,-1894.31,0.00021993,2]
[386457587,1758304049304,-1894.31,0.00022267,2]
[386457588,1758304049324,-1894.31,0.00022541,2]
[386457589,1758304049343,-1894.31,0.00022815,2]
[386457590,1758304049363,-1894.31,0.00023089,2]
[386457591,1758304049383,-661.94910816,0.00023361,2]
[386457592,1758304049402,-480.0,0.00023362,2]
[386457593,1758304049421,-480.0,0.00023362,2]
[386457594,1758304049440,-480.0,0.00023362,2]
[386457595,1758304049460,-1894.31,0.00023363,2]
[386457596,1758304049479,-344.57866246,0.00023375,2]
[386457597,1758304049498,-4407.53,0.000234,7]
[386457598,1758304049517,-700.0,0.00023426,2]
[386457599,1758304049537,-232.0,0.00023435,2]
[386457600,1758304049557,-480.0,0.00023467,2]
[386457601,1758304049577,-232.0,0.00023472,2]
[386457602,1758304049597,-232.0,0.00023475,2]
[386457603,1758304049616,-151.0,0.000235,8]
[386457604,1758304049635,-153.0,0.00023507,2]
[386457605,1758304049654,-2130.27775546,0.00023533,2]
[386457606,1758304049676,-480.0,0.00023565,2]
[386457607,1758304049697,-1034.62,0.00023565,2]
[386457608,1758304049718,-3577.51,0.00023565,2]
[386457609,1758304049739,-507.9,0.00023565,2]
[386457610,1758304049760,-232.0,0.00023613,2]
[386457611,1758304049781,-579.03,0.00023634,2]
[386457612,1758304049803,-480.0,0.00023634,2]
[386457613,1758304049825,-480.0,0.00023634,2]
[386457614,1758304049848,-862.81,0.00023634,2]
[386457615,1758304049869,-1218.0,0.00023634,2]
[386457616,1758304049892,-567.97,0.00023635,2]
[386457617,1758304049914,-480.0,0.00023635,2]
[386457618,1758304049935,-480.0,0.00023635,2]
[386457619,1758304049959,-522.06,0.00023635,2]
[386457620,1758304049981,-480.0,0.00023635,2]
[386457621,1758304050007,-587.91,0.00023635,2]
[386457622,1758304050032,-1202.5,0.00023635,2]
[386457623,1758304050053,-480.0,0.00023636,2]
[386457624,1758304050073,-480.0,0.00023636,2]
[386457625,1758304050093,-480.0,0.00023636,2]
[386457626,1758304050116,-1894.31,0.00023637,2]
[386457627,1758304050137,-232.0,0.00023694,2]
[386457628,1758304050157,-389.8265525,0.00023699,2]
[386457629,1758304050177,-389.8265525,0.00023699,2]
[386457630,1758304050197,-389.8265525,0.00023699,2]
[386457631,1758304050218,-389.8265525,0.00023699,2]
[386457632,1758304050237,-389.8265525,0.00023699,2]
[386457633,1758304050258,-453.9816666,0.00023699,2]
[386457634,1758304050279,-260.0,0.00023703,2]
[386457635,1758304050300,-480.0,0.00023741,2]
[386457636,1758304050320,-574.77574716,0.00023753,2]
[386457637,1758304050341,-480.0,0.00023839,2]
[386457638,1758304050363,-1034.62,0.00023839,2]
[386457639,1758304050384,-3577.51,0.00023839,2]
[386457640,1758304050406,-507.9,0.00023839,2]
[386457641,1758304050426,-46.42889888,0.0002387,2]
[386457642,1758304082890,160.0,0.000211,2]
[386457643,1758304085874,160.0,0.0002,3]
[386457644,1758304106691,320.0,0.000211,2]
[386457752,1758304232769,-160.0,0.00021166,2]
[386457754,1758304232778,-160.0,0.00021166,2]
[386457756,1758304232788,-531.75067929,0.00021166,2]
[386457757,1758304232798,-300.0,0.00021167,2]
[386457759,1758304232810,-480.0,0.00021168,2]
[386457761,1758304232819,-480.0,0.00021168,2]
[386457763,1758304232829,-480.0,0.00021168,2]
[386457765,1758304232838,-480.0,0.00021168,2]
[386457767,1758304232847,-480.0,0.00021168,2]
[386457768,1758304232856,-480.0,0.00021168,2]
[386457770,1758304232865,-480.0,0.00021168,2]
[386457772,1758304232874,-480.0,0.00021168,2]
[386457774,1758304232883,-480.0,0.00021168,2]
[386457776,1758304232892,-480.0,0.00021168,2]
[386457778,1758304232901,-480.0,0.00021168,2]
[386457780,1758304232910,-56.68094307,0.00021168,2]
[386458040,1758304238181,-423.31905693,0.00021168,2]
[386458041,1758304238190,-480.0,0.00021168,2]
[386458042,1758304238200,-480.0,0.00021168,2]
[386458043,1758304238210,-480.0,0.00021168,2]
[386458044,1758304238219,-480.0,0.00021168,2]
[386458045,1758304238228,-718.52,0.00021168,2]
[386458046,1758304238239,-480.0,0.00021168,2]
[386458047,1758304238248,-480.0,0.00021168,2]
[386458048,1758304238257,-480.0,0.00021168,2]
[386458049,1758304238266,-480.0,0.00021168,2]
[386458050,1758304238275,-417.15472785,0.00021168,2]
[386458051,1758304238284,-480.0,0.00021168,2]
[386458052,1758304238294,-480.0,0.00021168,2]
[386458053,1758304238304,-480.0,0.00021168,2]
[386458054,1758304238313,-778.8,0.00021168,2]
[386458055,1758304238322,-480.0,0.00021169,2]
[386458056,1758304238333,-1105.02,0.00021171,2]
[386458057,1758304238342,-480.0,0.00021171,2]
[386458058,1758304238353,-826.82,0.00021171,2]
[386458059,1758304238362,-480.0,0.00021373,2]
[386458060,1758304238372,-480.0,0.00021442,2]
[386458061,1758304238382,-480.0,0.00021442,2]
[386458062,1758304238391,-480.0,0.00021442,2]
[386458063,1758304238401,-480.0,0.00021442,2]
[386458064,1758304238410,-345.84244231,0.00021442,2]
[386458097,1758304239712,-134.15755769,0.00021442,2]
[386458098,1758304239722,-480.0,0.00021442,2]
[386458099,1758304239732,-480.0,0.00021442,2]
[386458100,1758304239742,-480.0,0.00021442,2]
[386458101,1758304239752,-480.0,0.00021442,2]
[386458102,1758304239761,-480.0,0.00021442,2]
[386458103,1758304239771,-480.0,0.00021442,2]
[386458104,1758304239781,-718.52,0.00021442,2]
[386458105,1758304239791,-480.0,0.00021442,2]
[386458106,1758304239801,-480.0,0.00021442,2]
[386458107,1758304239811,-480.0,0.00021442,2]
[386458108,1758304239821,-480.0,0.00021442,2]
[386458109,1758304239834,-480.0,0.00021442,2]
[386458110,1758304239844,-778.8,0.00021442,2]
[386458111,1758304239854,-480.0,0.00021443,2]
[386458112,1758304239865,-480.0,0.00021443,2]
[386458113,1758304239875,-480.0,0.00021443,2]
[386458114,1758304239887,-551.48002731,0.00021445,2]
[386458115,1758304239901,-553.53997269,0.00021445,2]
[386458116,1758304239911,-480.0,0.00021445,2]
[386458117,1758304239921,-826.82,0.00021445,2]
[386458118,1758304239931,-495.28901794,0.00021616,2]
[386458119,1758304239941,-480.0,0.00021647,2]
[386458120,1758304239951,-183.22987651,0.00021715,2]
[386458337,1758304242188,-18.23497359,0.00021715,2]
[386458339,1758304242198,-480.0,0.00021716,2]
[386458341,1758304242208,-480.0,0.00021716,2]
[386458343,1758304242219,-480.0,0.00021716,2]
[386458345,1758304242229,-480.0,0.00021716,2]
[386458347,1758304242240,-480.0,0.00021716,2]
[386458349,1758304242252,-480.0,0.00021716,2]
[386458352,1758304242264,-480.0,0.00021716,2]
[386458354,1758304242275,-480.0,0.00021716,2]
[386458356,1758304242286,-480.0,0.00021716,2]
[386458358,1758304242297,-480.0,0.00021716,2]
[386458360,1758304242307,-718.52,0.00021716,2]
[386458362,1758304242317,-480.0,0.00021716,2]
[386458364,1758304242327,-480.0,0.00021716,2]
[386458366,1758304242338,-480.0,0.00021716,2]
[386458368,1758304242349,-480.0,0.00021716,2]
[386458370,1758304242359,-480.0,0.00021716,2]
[386458372,1758304242370,-778.8,0.00021716,2]
[386458375,1758304242380,-594.33715917,0.00021717,2]
[386458377,1758304242390,-480.0,0.00021717,2]
[386458379,1758304242400,-480.0,0.00021717,2]
[386458381,1758304242410,-1105.02,0.00021719,2]
[386458383,1758304242421,-480.0,0.00021719,2]
[386458385,1758304242431,-826.82,0.00021719,2]
[386458387,1758304242441,-480.0,0.00021921,2]
[386458389,1758304242452,-480.0,0.0002199,2]
[386458391,1758304242462,-480.0,0.0002199,2]
[386458393,1758304242473,-157.75612924,0.0002199,2]
[386458721,1758304247954,-480.0,0.00021443,2]
[386458723,1758304247964,-480.0,0.00021717,2]
[386458725,1758304247974,-402.24387076,0.0002199,2]
[386458727,1758304247983,-480.0,0.0002199,2]
[386458729,1758304247992,-480.0,0.0002199,2]
[386458731,1758304248002,-480.0,0.0002199,2]
[386458733,1758304248011,-480.0,0.0002199,2]
[386458735,1758304248021,-480.0,0.0002199,2]
[386458737,1758304248030,-480.0,0.0002199,2]
[386458739,1758304248040,-718.52,0.0002199,2]
[386458741,1758304248049,-480.0,0.0002199,2]
[386458743,1758304248059,-480.0,0.0002199,2]
[386458745,1758304248068,-480.0,0.0002199,2]
[386458747,1758304248077,-480.0,0.0002199,2]
[386458749,1758304248087,-480.0,0.0002199,2]
[386458751,1758304248096,-778.8,0.0002199,2]
[386458753,1758304248106,-480.0,0.00021991,2]
[386458755,1758304248116,-212.12,0.00021991,2]
[386458757,1758304248125,-1105.02,0.00021993,2]
[386458759,1758304248135,-480.0,0.00021993,2]
[386458761,1758304248147,-826.82,0.00021993,2]
[386458763,1758304248157,-500.0,0.00022107,2]
[386458765,1758304248166,-500.0,0.00022107,2]
[386458767,1758304248175,-500.0,0.00022107,2]
[386458769,1758304248185,-500.0,0.00022107,2]
[386458771,1758304248194,-480.0,0.00022195,2]
[386458772,1758304248203,-480.0,0.00022264,2]
[386458774,1758304248214,-480.0,0.00022264,2]
[386458776,1758304248225,-474.82694064,0.00022264,2]
[386458778,1758304248236,-480.0,0.00022264,2]
[386458780,1758304248245,-480.0,0.00022264,2]
[386458782,1758304248255,-480.0,0.00022264,2]
[386458784,1758304248267,-480.0,0.00022264,2]
[386458786,1758304248277,-480.0,0.00022264,2]
[386458788,1758304248287,-207.0244736,0.00022264,2]
[386458828,1758304248693,-511.4955264,0.00022264,2]
[386458832,1758304248720,-480.0,0.00022264,2]
[386458834,1758304248730,-480.0,0.00022264,2]
[386458836,1758304248740,-480.0,0.00022264,2]
[386458838,1758304248749,-480.0,0.00022264,2]
[386458840,1758304248759,-15.6580106,0.00022265,2]
[386458842,1758304248770,-464.3419894,0.00022265,2]
[386458844,1758304248780,-1105.02,0.00022267,2]
[386458846,1758304248790,-480.0,0.00022267,2]
[386458848,1758304248800,-826.82,0.00022267,2]
[386458850,1758304248809,-480.0,0.00022469,2]
[386458852,1758304248819,-480.0,0.00022538,2]
[386458854,1758304248829,-93.98033846,0.00022538,2]
[386458856,1758304248841,-527.62757717,0.00022538,2]
[386458858,1758304248851,-274.6,0.00022538,2]
[386458860,1758304248861,-480.0,0.00022538,2]
[386458862,1758304248870,-480.0,0.00022538,2]
[386458864,1758304248881,-480.0,0.00022538,2]
[386458866,1758304248891,-480.0,0.00022538,2]
[386458868,1758304248901,-718.52,0.00022538,2]
[386458870,1758304248911,-480.0,0.00022538,2]
[386458872,1758304248921,-480.0,0.00022538,2]
[386458873,1758304248930,-608.77516542,0.00022538,2]
[386458875,1758304248939,-480.0,0.00022538,2]
[386458877,1758304248949,-480.0,0.00022539,2]
[386458879,1758304248959,-1105.02,0.00022541,2]
[386458881,1758304248969,-480.0,0.00022541,2]
[386458883,1758304248978,-826.82,0.00022541,2]
[386458885,1758304248988,-1000.0,0.00022655,2]
[386458887,1758304248998,-194.13183722,0.00022655,2]
[386458889,1758304249009,-305.86816278,0.00022655,2]
[386458891,1758304249019,-397.23183722,0.00022655,2]
[386458893,1758304249029,-534.40996947,0.00022655,2]
[386459068,1758304750567,433.37789068,0.00021065,2]
[386459077,1758305068396,379.20565438,0.00021061,2]
[386459132,1758305432497,-12671.21867243,0.0002114,2]
[386459133,1758305432509,-531.75067929,0.00021141,2]
[386459134,1758305432519,-300.0,0.00021141,2]
[386459135,1758305432528,-300.0,0.00021141,2]
[386459136,1758305432538,-300.0,0.00021141,2]
[386459137,1758305432547,-300.0,0.00021141,2]
[386459140,1758305432557,-300.0,0.00021141,2]
[386459142,1758305432566,-417.15472785,0.00021141,2]
[386459144,1758305432575,-160.0,0.00021142,2]
[386459146,1758305432584,-160.0,0.00021142,2]
[386459147,1758305432594,-160.0,0.00021142,2]
[386459148,1758305432606,-160.0,0.00021142,2]
[386459149,1758305432615,-755.0,0.00021145,2]
[386459150,1758305432624,-264.82709426,0.00021157,2]
[386459151,1758305432633,-208.93229019,0.00021157,2]
[386459152,1758305432642,-500.0,0.00021157,2]
[386459153,1758305432653,-500.0,0.00021157,2]
[386459154,1758305432662,-500.0,0.00021157,2]
[386459155,1758305432672,-500.0,0.00021157,2]
[386459156,1758305432682,-500.0,0.00021157,2]
[386459157,1758305432691,-265.31937866,0.00021157,2]
[386459158,1758305432701,-571.38929205,0.00021157,2]
[386459159,1758305432710,-500.0,0.00021157,2]
[386459160,1758305432719,-309.56484236,0.00021157,2]
[386459161,1758305432728,-500.0,0.00021157,2]
[386459162,1758305432737,-500.0,0.00021157,2]
[386459163,1758305432747,-500.0,0.00021157,2]
[386459164,1758305432756,-500.0,0.00021157,2]
[386459165,1758305432765,-500.0,0.00021157,2]
[386459166,1758305432774,-611.40478144,0.00021157,2]
[386459167,1758305432783,-500.0,0.00021157,2]
[386459168,1758305432793,-500.0,0.00021157,2]
[386459169,1758305432803,-500.0,0.00021157,2]
[386459170,1758305432812,-480.0,0.00021158,2]
[386459171,1758305432822,-503.31,0.0002116,2]
[386459172,1758305432832,-480.0,0.0002116,2]
[386459173,1758305432843,-480.0,0.0002116,2]
[386459174,1758305432853,-480.0,0.0002116,2]
[386459175,1758305432865,-480.0,0.0002116,2]
[386459176,1758305432875,-480.0,0.0002116,2]
[386459177,1758305432885,-649.0,0.00021162,2]
[386459178,1758305432896,-480.0,0.00021162,2]
[386459179,1758305432905,-480.0,0.00021163,2]
[386459180,1758305432915,-480.0,0.00021163,2]
[386459181,1758305432926,-480.0,0.00021163,2]
[386459182,1758305432935,-480.0,0.00021163,2]
[386459183,1758305432945,-480.0,0.00021163,2]
[386459184,1758305432954,-480.0,0.00021163,2]
[386459185,1758305432963,-480.0,0.00021163,2]
[386459186,1758305432973,-480.0,0.00021163,2]
[386459187,1758305432982,-480.0,0.00021163,2]
[386459188,1758305432991,-480.0,0.00021163,2]
[386459189,1758305433001,-480.0,0.00021163,2]
[386459190,1758305433011,-480.0,0.00021163,2]
[386459191,1758305433021,-480.0,0.00021163,2]
[386459192,1758305433030,-480.0,0.00021163,2]
[386459193,1758305433040,-500.0,0.00021163,2]
[386459194,1758305433049,-480.0,0.00021163,2]
[386459195,1758305433059,-480.0,0.00021163,2]
[386459197,1758305433071,-480.0,0.00021163,2]
[386459199,1758305433080,-480.0,0.00021163,2]
[386459200,1758305433089,-538.89,0.00021163,2]
[386459202,1758305433099,-480.0,0.00021163,2]
[386459204,1758305433109,-480.0,0.00021163,2]
[386459206,1758305433118,-480.0,0.00021163,2]
[386459208,1758305433128,-1000.0,0.00021163,2]
[386459210,1758305433138,-480.0,0.00021163,2]
[386459212,1758305433148,-701.46,0.00021165,2]
[386459214,1758305433158,-480.0,0.00021168,2]
[386459216,1758305433168,-480.0,0.00021168,2]
[386459219,1758305433179,-480.0,0.00021168,2]
[386459221,1758305433189,-967.23,0.00021168,2]
[386459222,1758305433199,-620.12,0.00021169,2]
[386459223,1758305433210,-2526.41,0.00021169,2]
[386459224,1758305433219,-480.0,0.00021169,2]
[386459225,1758305433229,-480.0,0.00021169,2]
[386459226,1758305433239,-480.0,0.00021169,2]
[386459227,1758305433249,-1133.37747402,0.00021267,2]
[386459228,1758305433259,-2550.09931656,0.00021267,2]
[386459229,1758305433270,-4533.5098961,0.00021267,2]
[386459230,1758305433280,-7076.52560344,0.00021267,2]
[386459231,1758305433289,-480.0,0.00021432,2]
[386459232,1758305433299,-503.31,0.00021434,2]
[386459233,1758305433308,-480.0,0.00021434,2]
[386459234,1758305433318,-480.0,0.00021434,2]
[386459235,1758305433328,-480.0,0.00021434,2]
[386459236,1758305433337,-649.0,0.00021436,2]
[386459237,1758305433347,-480.0,0.00021436,2]
[386459238,1758305433356,-4057.58241389,0.00021437,2]
[386459239,1758305433366,-480.0,0.00021437,2]
[386459240,1758305433376,-480.0,0.00021437,2]
[386459241,1758305433386,-480.0,0.00021437,2]
[386459242,1758305433395,-480.0,0.00021437,2]
[386459243,1758305433406,-538.89,0.00021437,2]
[386459244,1758305433415,-480.0,0.00021437,2]
[386459245,1758305433425,-480.0,0.00021437,2]
[386459246,1758305433434,-480.0,0.00021437,2]
[386459247,1758305433444,-480.0,0.00021437,2]
[386459248,1758305433453,-701.46,0.00021439,2]
[386459249,1758305433463,-480.0,0.00021442,2]
[386459250,1758305433472,-480.0,0.00021442,2]
[386459251,1758305433482,-967.23,0.00021442,2]
[386459252,1758305433491,-620.12,0.00021443,2]
[386459253,1758305433501,-2526.41,0.00021443,2]
[386459254,1758305433511,-480.0,0.00021443,2]
[386459255,1758305433659,-414.88325488,0.00021443,2]
[386459266,1758305438345,-480.0,0.00021158,2]
[386459267,1758305438355,-180.27919421,0.00021167,2]
[386459268,1758305438364,-264.86547287,0.00021167,2]
[386459269,1758305438373,-480.0,0.00021432,2]
[386459270,1758305438382,-65.11674512,0.00021443,2]
[386459271,1758305438391,-480.0,0.00021706,2]
[386459272,1758305438400,-480.0,0.00021706,2]
[386459273,1758305438409,-480.0,0.00021708,2]
[386459274,1758305438418,-480.0,0.00021708,2]
[386459275,1758305438427,-480.0,0.00021708,2]
[386459276,1758305438437,-649.0,0.0002171,2]
[386459277,1758305438446,-480.0,0.0002171,2]
[386459278,1758305438455,-387.13318519,0.00021711,2]
[386459279,1758305438466,-92.86681481,0.00021711,2]
[386459280,1758305438475,-480.0,0.00021711,2]
[386459281,1758305438484,-480.0,0.00021711,2]
[386459282,1758305438494,-480.0,0.00021711,2]